[Event "Asian Amateur-ch Open 2022"]
[Site "Muscat"]
[Date "2022.10.02"]
[Round "4.8"]
[White "Maasarani, Mahmoud"]
[Black "Said Ahmed Ali Jidal Fadhil"]
[Result "1-0"]
[ECO "A07"]
[WhiteElo "1991"]
[BlackElo "1755"]
[Annotator "TA"]
[PlyCount "137"]
[EventDate "2022.09.29"]
[EventType "swiss"]
[SourceTitle "playchess.com"]
[Source "ChessBase"]
[SourceQuality "1"]
[TimeControl "5400+30"]

{[%evp 11,137,-4,0,-10,-10,-23,-19,-24,-15,-25,-19,-42,28,-16,-15,-22,21,12,30,19,26,22,39,25,62,58,70,21,12,25,28,7,14,15,13,10,31,31,29,30,32,17,17,15,12,11,13,3,7,4,23,22,23,12,12,12,19,19,19,15,14,16,24,15,35,4,17,8,75,79,65,37,37,37,37,44,44,44,44,44,68,69,154,163,187,176,196,189,224,195,261,254,247,259,239,222,641,643,920,887,814,787,712,660,694,628,4810,6199,29986,29987,29987,29981,29986,29982,29990,29983,29984,29985,29988,29989,29989,29990,29991,29992,29996,29979,29993,29994]} 1. Nf3 {[%emt 0:00:16]} Nf6 {[%emt 0:04:31]} 2. g3 {[%emt 0:00:36]} d5 {[%emt 0:00:24]} 3. Bg2 {[%emt 0:00:28]} g6 {[%emt 0:05:32]} 4. O-O {[%emt 0:00:09]} Bg7 {[%emt 0:00:01]} 5. d3 {[%emt 0:01:59]} O-O {[%emt 0:00:37]} 6. Nbd2 {[%emt 0:01:24]} Re8 {[%emt 0:03:57] 6...Nc6 is the modern continuation.} 7. c3 {[%emt 0:03:03] A07: Réti Opening: New York and Capablanca Systems.} e5 {[%emt 0:00:38]} 8. e4 {[%emt 0:00:45]} c6 {[%emt 0:00:20]} 9. Qc2 {[%emt 0:02:59] The position is equal.} Qc7 {[%emt 0:07:12]} 10. Re1 {[%emt 0:01:21]} Nbd7 {[%emt 0:06:32] [#]} 11. d4 $146 {[%emt 0:05:48]} ({Predecessor:} 11. Nf1 dxe4 12. dxe4 Nf8 13. Ne3 Be6 14. b3 a5 15. Ba3 a4 16. Ng5 Qb6 17. Nxe6 Nxe6 {0-1 (42) Stankovic,I (2255)-Petesch,G (2330) Chess.com INT 2022}) 11... dxe4 {[%emt 0:04:04]} (11... exd4 $15 12. cxd4 dxe4 13. Nxe4 Nxe4 14. Rxe4 Rxe4 15. Qxe4 Nf6) 12. Nxe5 {[%emt 0:09:50]} Nxe5 {[%emt 0:08:22]} 13. dxe5 {[%emt 0:00:12]} Ng4 {[%emt 0:03:25]} 14. Nxe4 {[%emt 0:05:21] next f4 is good for White.} Nxe5 {[%emt 0:13:42]} 15. Bf4 {[%emt 0:03:31]} Bf5 {[%emt 0:01:21]} 16. h3 {[%emt 0:02:51]} f6 {[%emt 0:10:24]} 17. Rad1 {[%emt 0:05:39]} Bxe4 {[%emt 0:02:11]} 18. Rxe4 {[%emt 0:00:47]} Qf7 {[%emt 0:04:07]} 19. Rb4 {[%emt 0:09:35]} ({Better is} 19. b4 $14) 19... Bf8 $11 {[%emt 0:03:41]} 20. Ra4 {[%emt 0:05:17]} a6 {[%emt 0:01:08]} 21. Qb3 {[%emt 0:02:05]} Qxb3 {[%emt 0:00:28]} 22. axb3 {[%emt 0:00:01]} Rad8 {[%emt 0:01:47]} 23. Rad4 {[%emt 0:00:18]} Be7 {[%emt 0:01:15]} 24. Bxe5 {[%emt 0:07:06]} fxe5 {[%emt 0:00:03]} 25. Rd7 {[%emt 0:00:11]} Bf6 {[%emt 0:03:45]} 26. Bf3 {[%emt 0:01:30]} Rxd7 {[%emt 0:02:55]} 27. Rxd7 {[%emt 0:00:02][%mdl 4096] Endgame KRB-KRB} Re7 {[%emt 0:00:04]} 28. Rd8+ {[%emt 0:01:39]} Kf7 {[%emt 0:02:20]} 29. Be4 {[%emt 0:02:47]} Bg5 {[%emt 0:01:39]} 30. Rd1 {[%emt 0:01:53] Inhibits Bc1.} Rc7 {[%emt 0:01:53]} 31. h4 {[%emt 0:00:49]} Bf6 {[%emt 0:00:01]} 32. h5 {[%emt 0:00:36]} gxh5 {[%emt 0:01:37]} 33. Bxh7 {[%emt 0:00:02]} Ke6 {[%emt 0:00:21]} 34. Bg6 {[%emt 0:01:09]} h4 {[%emt 0:00:13]} 35. g4 {[%emt 0:00:23]} Be7 {[%emt 0:02:04]} 36. Bf5+ {[%emt 0:01:29]} Kf6 {[%emt 0:00:01]} 37. Kg2 {[%emt 0:00:24]} Kg5 {[%emt 0:01:14]} 38. Kf3 {[%emt 0:00:48]} a5 {[%emt 0:01:09]} 39. Ke4 {[%emt 0:00:26]} h3 {[%emt 0:01:50]} (39... Bf6 $11 {remains equal.}) 40. Rh1 $16 {[%emt 0:01:49]} Kh4 {[%emt 0:01:00]} 41. g5 {[%emt 0:04:56]} (41. Kxe5 $5 {[%cal Rg4g5]} Bd8 42. g5 Re7+ 43. Be6 $16) 41... Kxg5 {[%emt 0:00:17]} 42. Rxh3 {[%emt 0:00:02]} Bc5 {[%emt 0:00:52]} 43. Rg3+ {[%emt 0:01:25]} Kf6 $1 {[%emt 0:00:55]} 44. Rg6+ {[%emt 0:00:15]} Kf7 {[%emt 0:00:01]} 45. f3 {[%emt 0:03:13]} b5 {[%emt 0:00:57]} 46. Rh6 {[%emt 0:00:51] [#] Hoping for Rh7+.} Kg8 {[%emt 0:00:54] Against Rh7. White leaves nothing to chance now.} (46... Bf8 $14 47. Re6 Bg7) 47. Kxe5 {[%emt 0:01:31] White is more active.} b4 {[%emt 0:00:07]} 48. Be6+ {[%emt 0:03:30]} Kg7 {[%emt 0:00:16]} 49. Rh2 {[%emt 0:02:15] And now f4 would win.} Be7 {[%emt 0:01:17]} 50. Rg2+ {[%emt 0:00:14]} Kh6 {[%emt 0:00:12]} (50... Kh8 $142 51. f4 bxc3 52. bxc3 Rb7 53. Rg8+ Kh7) 51. f4 {[%emt 0:00:17][%cal Bf3f4,Bf4f5,Bf5f6][%mdl 32] Strongly threatening f5.} bxc3 {[%emt 0:00:41]} 52. bxc3 {[%emt 0:00:02] Threatens to win with f5.} Rb7 {[%emt 0:00:11]} 53. Bc4 {[%emt 0:00:58] Against Rb5+. Black must now prevent f5.} Bf8 $2 {[%emt 0:00:22]} (53... Bd8 54. Kf5 c5 55. Rg6+ Kh7 56. Bg8+ Kh8) 54. Rh2+ $18 {[%emt 0:00:39]} Kg7 {[%emt 0:00:53]} 55. f5 {[%emt 0:00:18]} Re7+ {[%emt 0:00:42]} 56. Be6 {[%emt 0:00:02]} Rb7 {[%emt 0:00:42]} 57. f6+ {[%emt 0:01:11]} Kg6 {[%emt 0:00:01]} 58. Rg2+ {[%emt 0:00:14]} Kh6 {[%emt 0:00:22]} 59. Bc4 {[%emt 0:00:33] Prevents Rb5+. White threatens Kf5 and mate.} Rd7 {[%emt 0:01:53]} 60. Kf5 {[%emt 0:00:10][%cal Rg2h2] White mates.} Kh7 {[%emt 0:00:22]} 61. Rh2+ {[%emt 0:01:16]} Bh6 {[%emt 0:00:02]} 62. Ke6 {[%emt 0:00:14]} Rd1 {[%emt 0:00:43]} 63. Kf7 {[%emt 0:01:38]} Rd7+ {[%emt 0:00:43]} 64. Ke8 {[%emt 0:00:02]} Rd1 {[%emt 0:00:36]} 65. f7 {[%emt 0:01:34]} Re1+ {[%emt 0:00:21]} 66. Kd7 {[%emt 0:01:20]} Rd1+ {[%emt 0:00:38]} 67. Ke7 {[%emt 0:00:03]} Re1+ {[%emt 0:00:01]} 68. Be6 {[%emt 0:00:39]} Kg6 {[%emt 0:00:46] [#]} 69. Rxh6+ $1 {[%emt 0:08:20][%mdl 512] Weighted Error Value: White=0.09 (flawless) /Black=0.33} 1-0

[Event "Asian Amateur-ch Open 2022"]
[Site "Muscat"]
[Date "2022.10.02"]
[Round "4.9"]
[White "UMER S.M"]
[Black "Shahali, Milad"]
[Result "1/2-1/2"]
[ECO "D02"]
[WhiteElo "1631"]
[BlackElo "1910"]
[Annotator "TA"]
[PlyCount "48"]
[EventDate "2022.09.29"]
[EventType "swiss"]
[SourceTitle "playchess.com"]
[Source "ChessBase"]
[SourceQuality "1"]
[TimeControl "5400+30"]

{[%evp 11,48,-12,-7,-6,-7,-6,-4,-19,2,0,0,-8,-14,-28,47,42,89,69,78,79,85,86,87,87,90,90,93,85,87,70,79,81,88,0,76,31,56,7,10]} 1. d4 {[%emt 0:00:03]} Nf6 {[%emt 0:00:05]} 2. Nf3 {[%emt 0:00:05]} e6 {[%emt 0:00:07]} 3. Bf4 {[%emt 0:00:02]} d5 {[%emt 0:00:19]} 4. e3 {[%emt 0:00:02]} Bd6 {[%emt 0:00:16]} 5. Nbd2 {[%emt 0:00:38]} O-O {[%emt 0:00:18]} 6. Bg3 {[%emt 0:03:02]} b6 {[%emt 0:00:12]} 7. c3 {[%emt 0:02:13] D02: 1 d4 d5 2 Nf3 sidelines, including 2...Nf6 3 g3 and 2...Nf6 3 Bf4.} c5 {[%emt 0:01:11]} 8. Ne5 {[%emt 0:08:17]} Qc7 {[%emt 0:00:56]} 9. f4 $1 {[%emt 0:01:11][%mdl 4] outshines the older 9.Bd3.} Ne4 {[%emt 0:11:59]} 10. Nxe4 {[%emt 0:02:52]} dxe4 {[%emt 0:01:05]} 11. a3 {[%emt 0:10:14] [#]} Nd7 $146 {[%emt 0:22:10]} ({Predecessor:} 11... Ba6 12. Bxa6 Nxa6 13. O-O f5 14. Qb3 Rfe8 15. d5 Rac8 16. dxe6 c4 17. Qb5 Nb8 {1-0 (41) Legahn,D (2132)-Spitzl,P (2013) Bamberg 2019}) 12. Be2 {[%emt 0:10:17]} f6 {[%emt 0:17:36]} (12... Nf6 $11) 13. Nc4 $14 {[%emt 0:00:29]} Bb7 {[%emt 0:13:05]} (13... f5 $14) 14. Nxd6 $16 {[%emt 0:05:14]} Qxd6 {[%emt 0:00:02]} 15. f5 {[%emt 0:01:14]} Qd5 {[%emt 0:00:20]} 16. c4 {[%emt 0:11:28]} Qc6 {[%emt 0:03:18]} 17. fxe6 {[%emt 0:01:40]} Qxe6 {[%emt 0:00:06]} 18. d5 {[%emt 0:00:23]} Qe7 {[%emt 0:01:07]} 19. O-O {[%emt 0:02:02]} f5 {[%emt 0:00:14]} 20. h4 {[%emt 0:06:53]} g6 {[%emt 0:01:49]} 21. Qe1 {[%emt 0:32:41]} Qf6 {[%emt 0:24:45]} 22. Qd1 {[%emt 0:00:30]} Qe7 {[%emt 0:00:30]} 23. Be1 {[%emt 0:00:30]} Ne5 {[%emt 0:00:30]} 24. g3 {[%emt 0:00:30]} (24. b4 $14) 24... g5 {[%emt 0:00:30] Weighted Error Value: White=0.14 (very precise) /Black=0.14 (very precise)} 1/2-1/2

[Event "Asian Amateur-ch Open 2022"]
[Site "Muscat"]
[Date "2022.10.02"]
[Round "4.10"]
[White "Al Ansi Amin"]
[Black "Muhammed, Zahid"]
[Result "0-1"]
[ECO "B07"]
[WhiteElo "1806"]
[BlackElo "1677"]
[Annotator "NA RC COMBH"]
[PlyCount "120"]
[EventDate "2022.09.29"]
[EventType "swiss"]
[SourceTitle "playchess.com"]
[Source "ChessBase"]
[SourceQuality "1"]
[TimeControl "5400+30"]

1. e4 {[%emt 0:04:13]} d6 {[%emt 0:00:14]} 2. d4 {[%emt 0:00:45]} Nf6 {[%emt 0:00:06]} 3. Bd3 {[%emt 0:00:19]} g6 {[%emt 0:00:25]} 4. Ne2 {[%emt 0:00:44]} Bg7 {[%emt 0:00:14]} 5. h3 {[%emt 0:00:09]} e5 {[%emt 0:01:38]} 6. d5 {[%emt 0:01:02]} Nbd7 {[%emt 0:01:42]} 7. c4 {[%emt 0:02:17]} Nc5 {[%emt 0:02:17]} 8. Nbc3 {[%emt 0:00:31]} a5 {[%emt 0:01:26]} 9. Bc2 {[%emt 0:00:30]} O-O {[%emt 0:04:17]} 10. Be3 {[%emt 0:00:50]} b6 {[%emt 0:03:32]} 11. Qd2 {[%emt 0:00:07]} Ba6 {[%emt 0:06:09]} 12. b3 {[%emt 0:02:38]} Rb8 {[%emt 0:01:20]} 13. a4 {[%emt 0:00:19]} Bc8 {[%emt 0:00:20]} 14. Bh6 {[%emt 0:00:31]} Ne8 {[%emt 0:01:31]} 15. Bxg7 {[%emt 0:13:52]} Nxg7 {[%emt 0:00:17]} 16. O-O-O {[%emt 0:01:53]} f5 {[%emt 0:01:14]} 17. f3 {[%emt 0:00:45]} f4 {[%emt 0:03:38]} 18. h4 {[%emt 0:02:05]} Nh5 {[%emt 0:01:27]} 19. Kb2 {[%emt 0:00:21]} Bd7 {[%emt 0:02:59]} 20. Rdg1 {[%emt 0:00:46]} Qf6 {[%emt 0:01:51]} 21. Bd1 {[%emt 0:01:52]} Kh8 {[%emt 0:02:53]} 22. Ka3 {[%emt 0:11:46]} Rf7 {[%emt 0:04:43]} 23. g3 {[%emt 0:10:45]} fxg3 {[%emt 0:01:28]} 24. Nxg3 {[%emt 0:00:29]} Qf4 {[%emt 0:07:40]} 25. Qxf4 {[%emt 0:02:54]} Nxf4 {[%emt 0:00:01]} 26. Nf1 {[%emt 0:18:09]} Ncd3 {[%emt 0:05:31]} 27. Rh2 {[%emt 0:00:47]} Rg8 {[%emt 0:04:31]} 28. Ne3 {[%emt 0:03:05]} h5 {[%emt 0:01:11]} 29. Ne2 {[%emt 0:13:53]} Nxe2 {[%emt 0:05:53]} 30. Bxe2 {[%emt 0:00:11]} Nf4 {[%emt 0:00:09]} 31. Bd1 {[%emt 0:00:30]} Kh7 {[%emt 0:00:49]} 32. Kb2 {[%emt 0:03:13]} Rgf8 {[%emt 0:03:09]} 33. Rg3 {[%emt 0:01:06]} Nd3+ {[%emt 0:01:21]} 34. Kc3 {[%emt 0:00:49]} Nf4 {[%emt 0:01:09]} 35. Ng2 {[%emt 0:01:50]} Be8 {[%emt 0:04:45]} 36. Nxf4 {[%emt 0:00:28]} Rxf4 {[%emt 0:00:06]} 37. Kd3 {[%emt 0:00:26]} Kh6 {[%emt 0:00:51]} 38. Ke3 {[%emt 0:00:02]} Rg8 {[%emt 0:01:43]} 39. Rg5 {[%emt 0:00:02]} Rxh4 {[%emt 0:02:13]} 40. Rxg6+ {[%emt 0:00:47]} Rxg6 {[%emt 0:01:07]} 41. Rxh4 {[%emt 0:00:02]} Kg5 {[%emt 0:00:31]} 42. Rh1 {[%emt 0:00:37]} h4 {[%emt 0:00:43]} 43. Rg1+ {[%emt 0:02:23]} Kf6 {[%emt 0:00:07]} 44. Rxg6+ {[%emt 0:00:21]} Kxg6 {[%emt 0:00:39]} 45. f4 {[%emt 0:00:06]} exf4+ {[%emt 0:00:37]} 46. Kxf4 {[%emt 0:00:01]} Bd7 {[%emt 0:01:14]} 47. e5 {[%emt 0:01:01]} dxe5+ {[%emt 0:03:05]} 48. Kxe5 {[%emt 0:00:07]} Bf5 {[%emt 0:01:47]} 49. Kd4 {[%emt 0:01:49]} Kg5 {[%emt 0:04:04]} 50. Bf3 {[%emt 0:00:11]} Kf4 {[%emt 0:00:13]} 51. Bh1 {[%emt 0:00:02]} Bc2 {[%emt 0:00:50]} 52. b4 {[%emt 0:01:35]} axb4 {[%emt 0:03:13]} 53. a5 {[%emt 0:00:15]} bxa5 {[%emt 0:04:08]} 54. c5 {[%emt 0:00:02]} a4 {[%emt 0:01:54]} 55. d6 {[%emt 0:00:45]} cxd6 {[%emt 0:00:57]} 56. cxd6 {[%emt 0:00:19]} Bf5 {[%emt 0:06:38]} 57. Bc6 a3 {[%emt 0:00:00]} 58. Bd5 {[%emt 0:00:45]} h3 {[%emt 0:00:00]} 59. Kc5 {[%emt 0:00:05]} h2 {[%emt 0:00:00]} 60. Kxb4 {[%emt 0:00:02]} a2 {[%emt 0:00:00]} 0-1

[Event "Asian Amateur-ch Open 2022"]
[Site "Muscat"]
[Date "2022.10.02"]
[Round "4.11"]
[White "Musallam Salim Al Aamri"]
[Black "Sharma Pankaj"]
[Result "0-1"]
[ECO "B28"]
[WhiteElo "1680"]
[BlackElo "1764"]
[Annotator "NA RC COMBH"]
[PlyCount "125"]
[EventDate "2022.09.29"]
[EventType "swiss"]
[SourceTitle "playchess.com"]
[Source "ChessBase"]
[SourceQuality "1"]
[TimeControl "5400+30"]

1. d4 {[%emt 0:08:22]} e6 {[%emt 0:00:46]} 2. e4 {[%emt 0:01:46]} d5 {[%emt 0:00:14]} 3. e5 {[%emt 0:00:26]} c5 {[%emt 0:00:12]} 4. c3 {[%emt 0:00:10]} Bd7 {[%emt 0:00:21]} 5. Nf3 {[%emt 0:00:39]} a6 {[%emt 0:00:03]} 6. Be2 {[%emt 0:00:32]} cxd4 {[%emt 0:00:13]} 7. cxd4 {[%emt 0:00:11]} Bb5 {[%emt 0:00:04]} 8. O-O {[%emt 0:02:42]} Bxe2 {[%emt 0:02:44]} 9. Qxe2 {[%emt 0:00:11]} Ne7 {[%emt 0:00:11]} 10. Bg5 {[%emt 0:05:53]} h6 {[%emt 0:01:04]} 11. Bxe7 {[%emt 0:00:38]} Bxe7 {[%emt 0:00:03]} 12. Nc3 {[%emt 0:00:17]} Nc6 {[%emt 0:00:11]} 13. Rac1 {[%emt 0:03:24]} O-O {[%emt 0:00:15]} 14. Rfd1 {[%emt 0:01:34]} Rc8 {[%emt 0:01:05]} 15. a3 {[%emt 0:01:35]} Na5 {[%emt 0:00:54]} 16. g3 {[%emt 0:03:45]} Nc4 {[%emt 0:01:51]} 17. Ne1 {[%emt 0:07:11]} Qb6 {[%emt 0:06:19]} 18. Rb1 {[%emt 0:00:59]} Qa5 {[%emt 0:03:04]} 19. Na2 {[%emt 0:09:33]} b5 {[%emt 0:02:50]} 20. Nc2 {[%emt 0:03:07]} Qb6 {[%emt 0:01:18]} 21. Ne3 {[%emt 0:00:42]} Rc7 {[%emt 0:06:05]} 22. Qd3 {[%emt 0:11:49]} Rfc8 {[%emt 0:06:25]} 23. Nc3 {[%emt 0:04:17]} Nxe3 {[%emt 0:07:32]} 24. Qxe3 {[%emt 0:01:40]} Bxa3 {[%emt 0:06:42]} 25. Nxd5 {[%emt 0:02:23]} exd5 {[%emt 0:00:16]} 26. Qxa3 {[%emt 0:00:24]} Rc4 {[%emt 0:01:01]} 27. Qe3 {[%emt 0:00:27]} a5 {[%emt 0:02:16]} 28. f4 {[%emt 0:02:26]} Qg6 {[%emt 0:04:35]} 29. Qf2 {[%emt 0:08:29]} Rc2 {[%emt 0:00:40]} 30. Qf3 {[%emt 0:00:30]} Qf5 {[%emt 0:04:44]} 31. g4 {[%emt 0:01:34]} Qg6 {[%emt 0:00:41]} 32. h4 {[%emt 0:01:58]} h5 {[%emt 0:00:48]} 33. f5 {[%emt 0:08:35]} Qxg4+ {[%emt 0:01:32]} 34. Qxg4 {[%emt 0:00:01]} hxg4 {[%emt 0:00:01]} 35. Re1 {[%emt 0:02:04]} Rd2 {[%emt 0:01:37]} 36. e6 {[%emt 0:01:12]} fxe6 {[%emt 0:03:08]} 37. fxe6 {[%emt 0:00:08]} Rxd4 {[%emt 0:07:19]} 38. Re5 {[%emt 0:00:33]} Kf8 {[%emt 0:04:26]} 39. Rf1+ {[%emt 0:05:05]} Ke8 {[%emt 0:02:45]} 40. Kg2 {[%emt 0:00:36]} Ke7 {[%emt 0:08:09]} 41. Rf7+ {[%emt 0:01:52]} Kd6 {[%emt 0:00:02]} 42. Rg5 {[%emt 0:00:18]} Kxe6 {[%emt 0:03:16]} 43. Rfxg7 {[%emt 0:00:17]} Rc2+ {[%emt 0:04:49]} 44. Kg3 {[%emt 0:00:54]} Rd3+ {[%emt 0:00:47]} 45. Kxg4 {[%emt 0:00:30]} Rg2+ {[%emt 0:00:03]} 46. Kh5 {[%emt 0:00:46]} Rxg5+ {[%emt 0:00:15]} 47. hxg5 {[%emt 0:00:07]} Rh3+ {[%emt 0:00:52]} 48. Kg6 {[%emt 0:00:37]} Rh2 {[%emt 0:00:29]} 49. Ra7 {[%emt 0:00:19]} a4 {[%emt 0:05:50]} 50. Ra6+ {[%emt 0:00:20]} Ke7 {[%emt 0:02:27]} 51. Kf5 {[%emt 0:00:43]} d4 {[%emt 0:01:56]} 52. Ke4 {[%emt 0:00:38]} d3 {[%emt 0:00:24]} 53. Kxd3 {[%emt 0:00:21]} Rxb2 {[%emt 0:00:16]} 54. Kd4 {[%emt 0:00:21]} Rb3 {[%emt 0:00:58]} 55. g6 {[%emt 0:00:30]} Kf8 {[%emt 0:00:32]} 56. Ra7 {[%emt 0:00:49]} a3 {[%emt 0:00:35]} 57. Ke5 {[%emt 0:00:54]} Rf3 {[%emt 0:00:19]} 58. Ke4 {[%emt 0:00:19]} Rb3 {[%emt 0:00:38]} 59. Ke5 {[%emt 0:00:01]} b4 {[%emt 0:00:32]} 60. Kf6 {[%emt 0:00:05]} Rf3+ {[%emt 0:00:01]} 61. Ke5 {[%emt 0:00:09]} Rf2 {[%emt 0:00:29]} 62. Ra4 {[%emt 0:01:25]} a2 {[%emt 0:00:15]} 63. Kd4 {[%emt 0:01:57]} 0-1

[Event "Asian Amateur-ch Open 2022"]
[Site "Muscat"]
[Date "2022.10.02"]
[Round "4.12"]
[White "Abdivaliev, Daniial"]
[Black "Gabdushev, Arman"]
[Result "0-1"]
[ECO "B16"]
[WhiteElo "1528"]
[BlackElo "1827"]
[Annotator "NA RC COMBH"]
[PlyCount "144"]
[EventDate "2022.09.29"]
[EventType "swiss"]
[SourceTitle "playchess.com"]
[Source "ChessBase"]
[SourceQuality "1"]
[TimeControl "5400+30"]

1. e4 {[%emt 0:00:07]} c6 {[%emt 0:00:04]} 2. d4 {[%emt 0:00:05]} d5 {[%emt 0:00:04]} 3. Nc3 {[%emt 0:00:04]} dxe4 {[%emt 0:00:09]} 4. Nxe4 {[%emt 0:00:04]} Nf6 {[%emt 0:00:06]} 5. Nxf6+ {[%emt 0:04:19]} gxf6 {[%emt 0:00:05]} 6. Bf4 {[%emt 0:01:54]} Bf5 {[%emt 0:00:14]} 7. Nf3 {[%emt 0:01:18]} e6 {[%emt 0:00:36]} 8. Qd2 {[%emt 0:01:53]} Bd6 {[%emt 0:00:18]} 9. Bh6 {[%emt 0:03:43]} Nd7 {[%emt 0:00:24]} 10. O-O-O {[%emt 0:01:54]} Qc7 {[%emt 0:00:29]} 11. g3 {[%emt 0:02:25]} O-O-O {[%emt 0:00:39]} 12. Nh4 {[%emt 0:01:13]} Bg4 {[%emt 0:01:47]} 13. f3 {[%emt 0:01:00]} Bh5 {[%emt 0:00:07]} 14. Be2 {[%emt 0:08:01]} Rhg8 {[%emt 0:05:48]} 15. Be3 {[%emt 0:06:27]} f5 {[%emt 0:01:21]} 16. Ng2 {[%emt 0:00:56]} Kb8 {[%emt 0:00:31]} 17. Nf4 {[%emt 0:02:19]} Bg6 {[%emt 0:00:33]} 18. Nd3 {[%emt 0:01:34]} c5 {[%emt 0:02:00]} 19. f4 {[%emt 0:01:43]} cxd4 {[%emt 0:02:13]} 20. Bxd4 {[%emt 0:00:07]} f6 {[%emt 0:00:27]} 21. Ne1 {[%emt 0:14:06]} Bc5 {[%emt 0:02:32]} 22. Qc3 {[%emt 0:03:43]} e5 {[%emt 0:01:27]} 23. Bxc5 {[%emt 0:02:08]} Nxc5 {[%emt 0:00:24]} 24. Nf3 {[%emt 0:03:41]} exf4 {[%emt 0:03:18]} 25. Nd4 {[%emt 0:06:02]} Rge8 {[%emt 0:04:51]} 26. Nb5 {[%emt 0:03:00]} Qb6 {[%emt 0:02:17]} 27. Rxd8+ {[%emt 0:00:20]} Rxd8 {[%emt 0:00:25]} 28. gxf4 {[%emt 0:02:28]} a6 {[%emt 0:02:13]} 29. Na3 {[%emt 0:02:04]} Ne4 {[%emt 0:00:23]} 30. Qf3 {[%emt 0:03:35]} Qa5 {[%emt 0:02:25]} 31. Bd3 {[%emt 0:03:11]} b5 {[%emt 0:03:57]} 32. Qe3 {[%emt 0:02:41]} Kb7 {[%emt 0:01:48]} 33. Rg1 {[%emt 0:02:33]} Qb6 {[%emt 0:01:55]} 34. Re1 {[%emt 0:03:49]} Qxe3+ {[%emt 0:02:25]} 35. Rxe3 {[%emt 0:00:06]} Nc5 {[%emt 0:00:42]} 36. Be2 {[%emt 0:00:35]} Rd4 {[%emt 0:01:14]} 37. c4 {[%emt 0:02:11]} bxc4 {[%emt 0:01:45]} 38. Nxc4 {[%emt 0:00:46]} Rxf4 {[%emt 0:00:33]} 39. Re7+ {[%emt 0:01:07]} Kc6 {[%emt 0:01:01]} 40. b4 {[%emt 0:00:51]} Ne4 {[%emt 0:04:15]} 41. Re6+ {[%emt 0:04:01]} Kd5 {[%emt 0:00:16]} 42. Rxa6 {[%emt 0:00:10]} Rf2 {[%emt 0:00:35]} 43. Nb6+ {[%emt 0:00:37]} Kd4 {[%emt 0:00:25]} 44. Bd1 {[%emt 0:02:57]} Rf1 {[%emt 0:02:02]} 45. Ra8 {[%emt 0:02:14]} Nc3 {[%emt 0:02:44]} 46. Rd8+ {[%emt 0:00:15]} Ke4 {[%emt 0:00:36]} 47. a4 {[%emt 0:01:31]} Na2+ {[%emt 0:01:04]} 48. Kb2 {[%emt 0:00:55]} Nxb4 {[%emt 0:00:20]} 49. Ka3 {[%emt 0:00:21]} Nc6 {[%emt 0:04:33]} 50. Bc2+ {[%emt 0:00:14]} Ke3 {[%emt 0:02:54]} 51. Nc4+ {[%emt 0:00:14]} Kf2 {[%emt 0:00:55]} 52. Rd6 {[%emt 0:01:14]} Ne5 {[%emt 0:00:41]} 53. Nb2 {[%emt 0:02:14]} Ra1+ {[%emt 0:02:53]} 54. Kb4 {[%emt 0:00:00]} Ra2 {[%emt 0:00:46]} 55. Nd3+ {[%emt 0:00:20]} Ke3 {[%emt 0:00:53]} 56. Nxe5 {[%emt 0:01:10]} fxe5 {[%emt 0:00:22]} 57. Bb3 {[%emt 0:00:00]} Rxh2 {[%emt 0:01:00]} 58. Ka3 {[%emt 0:00:00]} f4 {[%emt 0:00:18]} 59. a5 {[%emt 0:00:00]} Be4 {[%emt 0:00:40]} 60. Re6 {[%emt 0:00:26]} Kd4 {[%emt 0:01:33]} 61. Kb4 {[%emt 0:00:09]} f3 {[%emt 0:01:17]} 62. Rd6+ {[%emt 0:00:17]} Ke3 {[%emt 0:00:19]} 63. a6 {[%emt 0:00:27]} f2 {[%emt 0:00:51]} 64. Bc4 {[%emt 0:00:06]} Rh1 {[%emt 0:00:54]} 65. Rf6 {[%emt 0:00:28]} Rh4 {[%emt 0:01:39]} 66. Kc5 {[%emt 0:01:44]} Rf4 {[%emt 0:01:16]} 67. Re6 {[%emt 0:01:06]} f1=Q {[%emt 0:00:22]} 68. Bxf1 {[%emt 0:00:20]} Rxf1 {[%emt 0:00:07]} 69. Rxe5 {[%emt 0:00:19]} Rf5 {[%emt 0:00:33]} 70. Kd6 {[%emt 0:00:11]} Rxe5 {[%emt 0:00:16]} 71. Kxe5 {[%emt 0:00:08]} h5 {[%emt 0:00:04]} 72. a7 {[%emt 0:00:52]} h4 {[%emt 0:35:37]} 0-1